[Event "December 5 Early 2023"]
[Site "https://www.chess.com"]
[Date "2023.12.05"]
[Round "7"]
[White "Sychev, Klementy"]
[Black "Krysa, Leandro"]
[Result "1-0"]
[Board "29"]
[TimeControl "180+1"]
[WhiteFideId "4114060"]
[BlackFideId "116807"]
[WhiteElo "2891"]
[BlackElo "2741"]
[WhiteTeam "FID"]
[BlackTeam "ARG"]
[WhiteClock "0:00:02"]
[BlackClock "0:00:04"]

1. e4 {[%clk 0:02:56]}  e5 {[%clk 0:03:00]} 2. Nc3 {[%clk 0:02:47]}  Nf6 {[%clk 0:02:58]} 3. f4 {[%clk 0:02:44]}  d5 {[%clk 0:02:57]} 4. fxe5 {[%clk 0:02:44]}  Nxe4 {[%clk 0:02:57]} 5. Qf3 {[%clk 0:02:45]}  Nxc3 {[%clk 0:02:51]} 6. bxc3 {[%clk 0:02:44]}  Be6 {[%clk 0:02:51]} 7. Rb1 {[%clk 0:02:38]}  Be7 {[%clk 0:02:45]} 8. d4 {[%clk 0:02:36]}  O-O {[%clk 0:02:38]} 9. Bd3 {[%clk 0:01:33]}  c5 {[%clk 0:02:37]} 10. Ne2 {[%clk 0:01:29]}  Nc6 {[%clk 0:02:29]} 11. O-O {[%clk 0:01:27]}  Qd7 {[%clk 0:02:05]} 12. Qg3 {[%clk 0:01:22]}  c4 {[%clk 0:01:56]} 13. Bh6 {[%clk 0:01:18]}  g6 {[%clk 0:01:55]} 14. Bxg6 {[%clk 0:00:30]}  fxg6 {[%clk 0:01:37]} 15. Bxf8 {[%clk 0:00:20]}  Rxf8 {[%clk 0:01:36]} 16. Rxf8+ {[%clk 0:00:18]}  Bxf8 {[%clk 0:01:36]} 17. Nf4 {[%clk 0:00:19]}  Bf5 {[%clk 0:01:26]} 18. Rf1 {[%clk 0:00:18]}  Nd8 {[%clk 0:01:15]} 19. Nh5 {[%clk 0:00:16]}  Be7 {[%clk 0:01:12]} 20. Nf6+ {[%clk 0:00:11]}  Bxf6 {[%clk 0:01:12]} 21. exf6 {[%clk 0:00:12]}  Qe6 {[%clk 0:00:56]} 22. Qc7 {[%clk 0:00:09]}  Qd7 {[%clk 0:00:45]} 23. Qb8 {[%clk 0:00:07]}  Kf7 {[%clk 0:00:40]} 24. h3 {[%clk 0:00:07]}  a6 {[%clk 0:00:35]} 25. Qf4 {[%clk 0:00:07]}  Bxc2 {[%clk 0:00:27]} 26. Qh6 {[%clk 0:00:06]}  Kg8 {[%clk 0:00:27]} 27. h4 {[%clk 0:00:05]}  Bf5 {[%clk 0:00:25]} 28. h5 {[%clk 0:00:06]}  Qf7 {[%clk 0:00:18]} 29. Qf4 {[%clk 0:00:03]}  Ne6 {[%clk 0:00:11]} 30. Qe5 {[%clk 0:00:02]}  Nf8 {[%clk 0:00:10]} 31. Kh2 {[%clk 0:00:01]}  Nd7 {[%clk 0:00:10]} 32. Qg3 {[%clk 0:00:02]}  Nxf6 {[%clk 0:00:10]} 33. Rxf5 {[%clk 0:00:01]}  Qe6 {[%clk 0:00:04]} 34. Rf1 {[%clk 0:00:02]}  Nxh5 {[%clk 0:00:04]} 35. Qb8+ {[%clk 0:00:02]}  Kg7 {[%clk 0:00:04]} 36. Qf8# {[%clk 0:00:02]} 1-0

[Event "December 5 Early 2023"]
[Site "https://www.chess.com"]
[Date "2023.12.05"]
[Round "7"]
[White "Nihal Sarin"]
[Black "Nagare Kaivalya Sandip"]
[Result "0-1"]
[Board "32"]
[TimeControl "180+1"]
[WhiteFideId "25092340"]
[BlackFideId "25957929"]
[WhiteElo "3106"]
[BlackElo "2672"]
[WhiteTeam "IND"]
[BlackTeam "IND"]
[WhiteClock "0:00:31"]
[BlackClock "0:00:57"]

1. e4 {[%clk 0:03:00]}  e5 {[%clk 0:02:57]} 2. Nf3 {[%clk 0:03:01]}  Nc6 {[%clk 0:02:58]} 3. Bb5 {[%clk 0:03:01]}  a6 {[%clk 0:02:58]} 4. Ba4 {[%clk 0:03:02]}  Nf6 {[%clk 0:02:58]} 5. d3 {[%clk 0:03:02]}  b5 {[%clk 0:02:58]} 6. Bb3 {[%clk 0:03:03]}  Be7 {[%clk 0:02:59]} 7. a4 {[%clk 0:03:02]}  Rb8 {[%clk 0:02:53]} 8. axb5 {[%clk 0:03:02]}  axb5 {[%clk 0:02:53]} 9. Nc3 {[%clk 0:03:02]}  O-O {[%clk 0:02:50]} 10. h3 {[%clk 0:03:03]}  h6 {[%clk 0:02:50]} 11. g4 {[%clk 0:03:03]}  Nd4 {[%clk 0:02:45]} 12. Nxd4 {[%clk 0:03:02]}  exd4 {[%clk 0:02:46]} 13. Ne2 {[%clk 0:02:56]}  d5 {[%clk 0:02:43]} 14. Nxd4 {[%clk 0:02:51]}  Bb7 {[%clk 0:02:37]} 15. e5 {[%clk 0:02:35]}  Nd7 {[%clk 0:02:35]} 16. e6 {[%clk 0:02:35]}  Nc5 {[%clk 0:02:34]} 17. exf7+ {[%clk 0:02:33]}  Rxf7 {[%clk 0:02:35]} 18. O-O {[%clk 0:02:32]}  Nxb3 {[%clk 0:02:31]} 19. cxb3 {[%clk 0:02:22]}  c5 {[%clk 0:02:31]} 20. Nf5 {[%clk 0:02:22]}  d4 {[%clk 0:02:30]} 21. Bf4 {[%clk 0:02:19]}  Qd5 {[%clk 0:02:19]} 22. f3 {[%clk 0:02:13]}  Rbf8 {[%clk 0:02:19]} 23. Qe2 {[%clk 0:02:05]}  Bd8 {[%clk 0:02:13]} 24. Rac1 {[%clk 0:01:54]}  Rxf5 {[%clk 0:02:06]} 25. gxf5 {[%clk 0:01:54]}  Qxf5 {[%clk 0:02:07]} 26. Bg3 {[%clk 0:01:48]}  Qxh3 {[%clk 0:01:55]} 27. Qg2 {[%clk 0:01:22]}  Qf5 {[%clk 0:01:50]} 28. Bd6 {[%clk 0:01:22]}  Rf6 {[%clk 0:01:41]} 29. Rxc5 {[%clk 0:01:22]}  Qxd3 {[%clk 0:01:40]} 30. Bg3 {[%clk 0:01:17]}  Rg6 {[%clk 0:01:37]} 31. Qh3 {[%clk 0:00:58]}  Be7 {[%clk 0:01:08]} 32. Qf5 {[%clk 0:00:29]}  Rxg3+ {[%clk 0:01:07]} 33. Kh2 {[%clk 0:00:29]}  Qxf5 {[%clk 0:01:00]} 34. Rxf5 {[%clk 0:00:30]}  Rg5 {[%clk 0:01:01]} 35. Rxg5 {[%clk 0:00:29]}  Bxg5 {[%clk 0:01:01]} 36. f4 {[%clk 0:00:29]}  Bf6 {[%clk 0:01:01]} 37. Rd1 {[%clk 0:00:30]}  Bd5 {[%clk 0:01:01]} 38. b4 {[%clk 0:00:30]}  Kf7 {[%clk 0:01:00]} 39. Kg3 {[%clk 0:00:30]}  Ke6 {[%clk 0:01:00]} 40. Rc1 {[%clk 0:00:30]}  Bc4 {[%clk 0:01:00]} 41. Kf2 {[%clk 0:00:29]}  Kd5 {[%clk 0:01:01]} 42. Kf3 {[%clk 0:00:29]}  d3 {[%clk 0:01:01]} 43. b3 {[%clk 0:00:30]}  Bxb3 {[%clk 0:01:00]} 44. Ke3 {[%clk 0:00:30]}  Bc2 {[%clk 0:00:58]} 45. Rh1 {[%clk 0:00:30]}  Kc4 {[%clk 0:00:58]} 46. Rh5 {[%clk 0:00:29]}  Kxb4 {[%clk 0:00:58]} 47. Rd5 {[%clk 0:00:29]}  Kc4 {[%clk 0:00:57]} 48. Rd7 {[%clk 0:00:30]}  b4 {[%clk 0:00:57]} 49. Rc7+ {[%clk 0:00:30]}  Kb3 {[%clk 0:00:57]} 50. Rc6 {[%clk 0:00:31]}  Kb2 {[%clk 0:00:57]} 51. Kd2 {[%clk 0:00:31]}  Bc3+ {[%clk 0:00:57]} 52. Ke3 {[%clk 0:00:31]}  d2 {[%clk 0:00:57]} 0-1

[Event "December 5 Early 2023"]
[Site "https://www.chess.com"]
[Date "2023.12.05"]
[Round "7"]
[White "Antunez Soler, Luis"]
[Black "Gokerkan, Cem Kaan"]
[Result "0-1"]
[Board "38"]
[TimeControl "180+1"]
[WhiteFideId "3513335"]
[BlackFideId "6336760"]
[WhiteElo "2659"]
[BlackElo "2863"]
[WhiteTeam "CUB"]
[BlackTeam "TUR"]
[WhiteClock "0:00:10"]
[BlackClock "0:01:26"]

1. e4 {[%clk 0:03:00]}  c5 {[%clk 0:03:00]} 2. Nf3 {[%clk 0:03:01]}  d6 {[%clk 0:03:00]} 3. Bb5+ {[%clk 0:03:01]}  Nd7 {[%clk 0:03:00]} 4. d4 {[%clk 0:03:01]}  a6 {[%clk 0:03:00]} 5. Bxd7+ {[%clk 0:03:01]}  Bxd7 {[%clk 0:03:01]} 6. dxc5 {[%clk 0:03:02]}  Qa5+ {[%clk 0:03:01]} 7. Nc3 {[%clk 0:03:02]}  Qxc5 {[%clk 0:03:01]} 8. Be3 {[%clk 0:03:03]}  Qa5 {[%clk 0:02:52]} 9. O-O {[%clk 0:03:02]}  Nf6 {[%clk 0:02:52]} 10. Nd4 {[%clk 0:02:52]}  e6 {[%clk 0:02:50]} 11. f4 {[%clk 0:02:50]}  Be7 {[%clk 0:02:49]} 12. f5 {[%clk 0:02:47]}  e5 {[%clk 0:02:43]} 13. Nb3 {[%clk 0:02:45]}  Qc7 {[%clk 0:02:43]} 14. Bg5 {[%clk 0:02:43]}  Bc6 {[%clk 0:02:32]} 15. Qd3 {[%clk 0:02:36]}  O-O {[%clk 0:02:14]} 16. Rad1 {[%clk 0:02:19]}  Rfd8 {[%clk 0:02:13]} 17. Qf3 {[%clk 0:01:28]}  Rac8 {[%clk 0:02:08]} 18. Kh1 {[%clk 0:01:04]}  b5 {[%clk 0:02:03]} 19. a3 {[%clk 0:00:45]}  a5 {[%clk 0:01:51]} 20. Rfe1 {[%clk 0:00:36]}  b4 {[%clk 0:01:45]} 21. axb4 {[%clk 0:00:31]}  axb4 {[%clk 0:01:46]} 22. Bxf6 {[%clk 0:00:21]}  bxc3 {[%clk 0:01:36]} 23. Bxe7 {[%clk 0:00:20]}  Qxe7 {[%clk 0:01:37]} 24. bxc3 {[%clk 0:00:19]}  Bb7 {[%clk 0:01:31]} 25. Rd3 {[%clk 0:00:17]}  Qh4 {[%clk 0:01:26]} 26. h3 {[%clk 0:00:10]}  Qxe1+ {[%clk 0:01:26]} 0-1

[Event "December 5 Early 2023"]
[Site "https://www.chess.com"]
[Date "2023.12.05"]
[Round "7"]
[White "Yeremyan, Alen"]
[Black "Golubev, Mikhail"]
[Result "0-1"]
[Board "45"]
[TimeControl "180+1"]
[WhiteFideId "13308998"]
[BlackFideId "14100983"]
[WhiteElo "2801"]
[BlackElo "2611"]
[WhiteTeam "ARM"]
[BlackTeam "UKR"]
[WhiteClock "0:00:02"]
[BlackClock "0:00:28"]

1. e4 {[%clk 0:02:59]}  c5 {[%clk 0:02:59]} 2. Nc3 {[%clk 0:02:58]}  Nc6 {[%clk 0:02:58]} 3. Bb5 {[%clk 0:02:58]}  Nd4 {[%clk 0:02:58]} 4. Bc4 {[%clk 0:02:58]}  e6 {[%clk 0:02:58]} 5. Nge2 {[%clk 0:02:58]}  Nf6 {[%clk 0:02:54]} 6. O-O {[%clk 0:02:58]}  a6 {[%clk 0:02:51]} 7. a4 {[%clk 0:02:59]}  d5 {[%clk 0:02:51]} 8. exd5 {[%clk 0:02:59]}  exd5 {[%clk 0:02:52]} 9. Ba2 {[%clk 0:02:59]}  Nxe2+ {[%clk 0:02:48]} 10. Qxe2+ {[%clk 0:02:56]}  Be7 {[%clk 0:02:48]} 11. d3 {[%clk 0:02:55]}  O-O {[%clk 0:02:47]} 12. Qf3 {[%clk 0:02:54]}  Bg4 {[%clk 0:02:30]} 13. Qg3 {[%clk 0:02:54]}  Be6 {[%clk 0:02:28]} 14. Bg5 {[%clk 0:02:53]}  Qd7 {[%clk 0:02:23]} 15. Qf3 {[%clk 0:02:50]}  Rfd8 {[%clk 0:02:14]} 16. Rae1 {[%clk 0:02:47]}  b5 {[%clk 0:02:11]} 17. h3 {[%clk 0:02:18]}  b4 {[%clk 0:02:10]} 18. Ne2 {[%clk 0:02:17]}  Qxa4 {[%clk 0:01:51]} 19. Bb3 {[%clk 0:02:16]}  Qd7 {[%clk 0:01:46]} 20. Nf4 {[%clk 0:02:14]}  a5 {[%clk 0:01:46]} 21. Re5 {[%clk 0:01:59]}  a4 {[%clk 0:01:45]} 22. Ba2 {[%clk 0:01:54]}  a3 {[%clk 0:01:42]} 23. bxa3 {[%clk 0:01:46]}  Rxa3 {[%clk 0:01:41]} 24. Bb3 {[%clk 0:01:16]}  c4 {[%clk 0:01:37]} 25. Nxe6 {[%clk 0:00:39]}  fxe6 {[%clk 0:01:37]} 26. dxc4 {[%clk 0:00:30]}  dxc4 {[%clk 0:01:36]} 27. Bc1 {[%clk 0:00:31]}  cxb3 {[%clk 0:01:29]} 28. Bxa3 {[%clk 0:00:30]}  bxa3 {[%clk 0:01:29]} 29. Qxb3 {[%clk 0:00:31]}  Nd5 {[%clk 0:01:22]} 30. c4 {[%clk 0:00:28]}  Nf4 {[%clk 0:01:21]} 31. c5 {[%clk 0:00:24]}  Qc6 {[%clk 0:00:58]} 32. Qg3 {[%clk 0:00:20]}  Rf8 {[%clk 0:00:57]} 33. Kh1 {[%clk 0:00:12]}  Bxc5 {[%clk 0:00:53]} 34. Rc1 {[%clk 0:00:12]}  Bxf2 {[%clk 0:00:50]} 35. Qxf4 {[%clk 0:00:12]}  Rxf4 {[%clk 0:00:43]} 36. Rxc6 {[%clk 0:00:13]}  Ra4 {[%clk 0:00:35]} 37. Rec5 {[%clk 0:00:02]}  Bxc5 {[%clk 0:00:28]} 0-1

[Event "December 5 Early 2023"]
[Site "https://www.chess.com"]
[Date "2023.12.05"]
[Round "7"]
[White "Martin Fuentes, Alberto"]
[Black "Weetik, Vjacheslav"]
[Result "0-1"]
[Board "46"]
[TimeControl "180+1"]
[WhiteFideId "2292289"]
[BlackFideId "4153472"]
[WhiteElo "2619"]
[BlackElo "2791"]
[WhiteTeam "ESP"]
[BlackTeam "RUS"]
[WhiteClock "0:00:45"]
[BlackClock "0:00:04"]

1. e4 {[%clk 0:03:00]}  c6 {[%clk 0:03:00]} 2. Nc3 {[%clk 0:03:00]}  d5 {[%clk 0:03:00]} 3. g3 {[%clk 0:03:01]}  dxe4 {[%clk 0:03:00]} 4. Nxe4 {[%clk 0:03:02]}  Nf6 {[%clk 0:02:58]} 5. Bg2 {[%clk 0:03:01]}  Nxe4 {[%clk 0:02:57]} 6. Bxe4 {[%clk 0:03:01]}  Nd7 {[%clk 0:02:58]} 7. Ne2 {[%clk 0:03:00]}  e5 {[%clk 0:02:56]} 8. O-O {[%clk 0:02:59]}  Bd6 {[%clk 0:02:57]} 9. d4 {[%clk 0:02:57]}  O-O {[%clk 0:02:56]} 10. Bg2 {[%clk 0:02:54]}  Re8 {[%clk 0:02:53]} 11. Be3 {[%clk 0:02:48]}  Qc7 {[%clk 0:02:48]} 12. b3 {[%clk 0:02:46]}  Nf6 {[%clk 0:02:36]} 13. h3 {[%clk 0:02:40]}  Bf5 {[%clk 0:02:29]} 14. c4 {[%clk 0:02:39]}  exd4 {[%clk 0:02:11]} 15. Nxd4 {[%clk 0:02:40]}  Bg6 {[%clk 0:02:11]} 16. Qd2 {[%clk 0:02:26]}  Rad8 {[%clk 0:02:11]} 17. Rad1 {[%clk 0:02:18]}  Bc5 {[%clk 0:01:50]} 18. Qb2 {[%clk 0:02:11]}  Qb6 {[%clk 0:01:34]} 19. Nc2 {[%clk 0:02:07]}  Ne4 {[%clk 0:01:26]} 20. Bxc5 {[%clk 0:02:03]}  Qxc5 {[%clk 0:01:24]} 21. Rxd8 {[%clk 0:02:04]}  Rxd8 {[%clk 0:01:25]} 22. Bxe4 {[%clk 0:01:56]}  Bxe4 {[%clk 0:01:24]} 23. Ne3 {[%clk 0:01:57]}  Qh5 {[%clk 0:01:21]} 24. Kh2 {[%clk 0:01:47]}  Qf3 {[%clk 0:01:20]} 25. Qe5 {[%clk 0:01:44]}  h6 {[%clk 0:01:15]} 26. Qf4 {[%clk 0:01:38]}  Rd2 {[%clk 0:01:08]} 27. Qxf3 {[%clk 0:01:36]}  Bxf3 {[%clk 0:01:09]} 28. g4 {[%clk 0:01:32]}  Rxa2 {[%clk 0:01:08]} 29. Kg3 {[%clk 0:01:32]}  Be4 {[%clk 0:01:07]} 30. Rd1 {[%clk 0:01:30]}  Rb2 {[%clk 0:01:05]} 31. Rd4 {[%clk 0:01:23]}  Bb1 {[%clk 0:01:00]} 32. c5 {[%clk 0:01:17]}  Rxb3 {[%clk 0:00:59]} 33. Rd8+ {[%clk 0:01:18]}  Kh7 {[%clk 0:00:59]} 34. h4 {[%clk 0:01:13]}  a5 {[%clk 0:00:58]} 35. Ra8 {[%clk 0:01:13]}  Rb5 {[%clk 0:00:58]} 36. Nc4 {[%clk 0:01:12]}  Rxc5 {[%clk 0:00:55]} 37. Nxa5 {[%clk 0:01:12]}  b5 {[%clk 0:00:54]} 38. f3 {[%clk 0:01:11]}  Rc3 {[%clk 0:00:53]} 39. Kf4 {[%clk 0:01:11]}  Bc2 {[%clk 0:00:49]} 40. Rc8 {[%clk 0:01:04]}  c5 {[%clk 0:00:50]} 41. Nb7 {[%clk 0:01:04]}  b4 {[%clk 0:00:46]} 42. Nd6 {[%clk 0:00:57]}  Bd1 {[%clk 0:00:41]} 43. Ke5 {[%clk 0:00:52]}  Rxf3 {[%clk 0:00:37]} 44. Rxc5 {[%clk 0:00:52]}  b3 {[%clk 0:00:37]} 45. Rb5 {[%clk 0:00:51]}  Rg3 {[%clk 0:00:28]} 46. Nxf7 {[%clk 0:00:47]}  Rxg4 {[%clk 0:00:27]} 47. Rb8 {[%clk 0:00:46]}  Rxh4 {[%clk 0:00:25]} 48. Kf5 {[%clk 0:00:47]}  Bc2+ {[%clk 0:00:24]} 49. Ke5 {[%clk 0:00:47]}  Re4+ {[%clk 0:00:20]} 50. Kd5 {[%clk 0:00:46]}  Rf4 {[%clk 0:00:21]} 51. Rh8+ {[%clk 0:00:43]}  Kg6 {[%clk 0:00:21]} 52. Ne5+ {[%clk 0:00:44]}  Kg5 {[%clk 0:00:19]} 53. Rg8 {[%clk 0:00:44]}  g6 {[%clk 0:00:19]} 54. Rb8 {[%clk 0:00:41]}  h5 {[%clk 0:00:19]} 55. Rb7 {[%clk 0:00:38]}  h4 {[%clk 0:00:18]} 56. Rb8 {[%clk 0:00:38]}  Rf2 {[%clk 0:00:09]} 57. Kd4 {[%clk 0:00:37]}  Rd2+ {[%clk 0:00:03]} 58. Ke3 {[%clk 0:00:37]}  Rg2 {[%clk 0:00:03]} 59. Nf3+ {[%clk 0:00:38]}  Kg4 {[%clk 0:00:03]} 60. Rh8 {[%clk 0:00:38]}  g5 {[%clk 0:00:03]} 61. Rg8 {[%clk 0:00:39]}  Kh3 {[%clk 0:00:02]} 62. Nxg5+ {[%clk 0:00:39]}  Rxg5 {[%clk 0:00:02]} 63. Rxg5 {[%clk 0:00:38]}  b2 {[%clk 0:00:03]} 64. Rb5 {[%clk 0:00:37]}  b1=Q {[%clk 0:00:03]} 65. Rxb1 {[%clk 0:00:38]}  Bxb1 {[%clk 0:00:04]} 66. Kf2 {[%clk 0:00:39]}  Kh2 {[%clk 0:00:05]} 67. Kf1 {[%clk 0:00:39]}  h3 {[%clk 0:00:05]} 68. Kf2 {[%clk 0:00:40]}  Be4 {[%clk 0:00:05]} 69. Kf1 {[%clk 0:00:40]}  Kg3 {[%clk 0:00:05]} 70. Ke2 {[%clk 0:00:40]}  h2 {[%clk 0:00:05]} 71. Ke3 {[%clk 0:00:41]}  h1=Q {[%clk 0:00:05]} 72. Kd4 {[%clk 0:00:42]}  Ba8 {[%clk 0:00:06]} 73. Ke5 {[%clk 0:00:43]}  Qe4+ {[%clk 0:00:05]} 74. Kd6 {[%clk 0:00:43]}  Qd5+ {[%clk 0:00:06]} 75. Ke7 {[%clk 0:00:44]}  Qc6 {[%clk 0:00:06]} 76. Kf8 {[%clk 0:00:44]}  Qd7 {[%clk 0:00:06]} 77. Kg8 {[%clk 0:00:44]}  Be4 {[%clk 0:00:05]} 78. Kh8 {[%clk 0:00:45]}  Qh7# {[%clk 0:00:04]} 0-1

[Event "December 5 Early 2023"]
[Site "https://www.chess.com"]
[Date "2023.12.05"]
[Round "7"]
[White "Jaiveer Mahendru"]
[Black "Damjanovic, Vuk"]
[Result "0-1"]
[Board "48"]
[TimeControl "180+1"]
[WhiteFideId "25611151"]
[BlackFideId "980021"]
[WhiteElo "2608"]
[BlackElo "2780"]
[WhiteTeam "IND"]
[BlackTeam "SRB"]
[WhiteClock "0:00:00"]
[BlackClock "0:00:24"]

1. e4 {[%clk 0:03:00]}  Nc6 {[%clk 0:03:00]} 2. f4 {[%clk 0:03:01]}  d5 {[%clk 0:03:00]} 3. e5 {[%clk 0:03:01]}  Bf5 {[%clk 0:02:58]} 4. Nf3 {[%clk 0:02:59]}  e6 {[%clk 0:02:57]} 5. d4 {[%clk 0:02:59]}  h5 {[%clk 0:02:56]} 6. Bd3 {[%clk 0:02:59]}  Nge7 {[%clk 0:02:56]} 7. c3 {[%clk 0:02:54]}  Qd7 {[%clk 0:02:57]} 8. Be3 {[%clk 0:02:54]}  Bxd3 {[%clk 0:02:57]} 9. Qxd3 {[%clk 0:02:53]}  Nf5 {[%clk 0:02:57]} 10. Nbd2 {[%clk 0:02:53]}  Be7 {[%clk 0:02:58]} 11. a4 {[%clk 0:02:52]}  Na5 {[%clk 0:02:40]} 12. b4 {[%clk 0:02:42]}  Nc4 {[%clk 0:02:39]} 13. Bf2 {[%clk 0:02:36]}  Nxd2 {[%clk 0:02:39]} 14. Nxd2 {[%clk 0:02:31]}  f6 {[%clk 0:02:39]} 15. O-O {[%clk 0:02:12]}  fxe5 {[%clk 0:02:39]} 16. dxe5 {[%clk 0:02:03]}  d4 {[%clk 0:02:26]} 17. cxd4 {[%clk 0:01:53]}  Bxb4 {[%clk 0:02:25]} 18. Nf3 {[%clk 0:01:48]}  a5 {[%clk 0:02:18]} 19. Ng5 {[%clk 0:01:20]}  Qd5 {[%clk 0:02:08]} 20. Nxe6 {[%clk 0:01:13]}  Qxe6 {[%clk 0:02:08]} 21. d5 {[%clk 0:01:14]}  Qg6 {[%clk 0:02:08]} 22. Qb5+ {[%clk 0:01:10]}  c6 {[%clk 0:02:05]} 23. Qxb7 {[%clk 0:01:10]}  O-O {[%clk 0:02:06]} 24. dxc6 {[%clk 0:01:02]}  Rab8 {[%clk 0:02:06]} 25. Qa6 {[%clk 0:01:00]}  Rbc8 {[%clk 0:01:54]} 26. Rac1 {[%clk 0:00:56]}  h4 {[%clk 0:01:54]} 27. Be1 {[%clk 0:00:37]}  Ne3 {[%clk 0:01:49]} 28. Rf2 {[%clk 0:00:37]}  Bxe1 {[%clk 0:01:22]} 29. Rxe1 {[%clk 0:00:38]}  Rxc6 {[%clk 0:01:22]} 30. Qxa5 {[%clk 0:00:32]}  Nf5 {[%clk 0:01:16]} 31. Qd5+ {[%clk 0:00:27]}  Re6 {[%clk 0:01:04]} 32. a5 {[%clk 0:00:26]}  Kh7 {[%clk 0:01:04]} 33. Ra1 {[%clk 0:00:19]}  Ne3 {[%clk 0:00:58]} 34. Qf3 {[%clk 0:00:17]}  Nf5 {[%clk 0:00:57]} 35. Qe4 {[%clk 0:00:15]}  Ra6 {[%clk 0:00:38]} 36. Rfa2 {[%clk 0:00:16]}  Rd8 {[%clk 0:00:35]} 37. Ra3 {[%clk 0:00:12]}  Rd4 {[%clk 0:00:34]} 38. Qf3 {[%clk 0:00:11]}  Rd2 {[%clk 0:00:30]} 39. R3a2 {[%clk 0:00:10]}  Nd4 {[%clk 0:00:28]} 40. Qf1 {[%clk 0:00:07]}  Ne2+ {[%clk 0:00:23]} 41. Kh1 {[%clk 0:00:07]}  Ng3+ {[%clk 0:00:24]} 42. hxg3 {[%clk 0:00:07]}  hxg3 {[%clk 0:00:25]} 43. Kg1 {[%clk 0:00:00]}  Qh6 {[%clk 0:00:24]} 0-1

[Event "December 5 Early 2023"]
[Site "https://www.chess.com"]
[Date "2023.12.05"]
[Round "7"]
[White "Samunenkov, Ihor"]
[Black "Olenik Campa, Rudi"]
[Result "0-1"]
[Board "49"]
[TimeControl "180+1"]
[WhiteFideId "14187086"]
[BlackFideId "14633264"]
[WhiteElo "2762"]
[BlackElo "2608"]
[WhiteTeam "UKR"]
[BlackTeam "SLO"]
[WhiteClock "0:00:00"]
[BlackClock "0:00:17"]

1. d4 {[%clk 0:03:00]}  Nf6 {[%clk 0:02:59]} 2. c4 {[%clk 0:03:00]}  g6 {[%clk 0:03:00]} 3. Nc3 {[%clk 0:03:00]}  Bg7 {[%clk 0:03:00]} 4. e4 {[%clk 0:03:00]}  d6 {[%clk 0:03:01]} 5. h3 {[%clk 0:03:01]}  c5 {[%clk 0:02:59]} 6. Nf3 {[%clk 0:02:44]}  O-O {[%clk 0:02:48]} 7. Be3 {[%clk 0:02:44]}  cxd4 {[%clk 0:02:47]} 8. Nxd4 {[%clk 0:02:44]}  Na6 {[%clk 0:02:47]} 9. Be2 {[%clk 0:02:29]}  b6 {[%clk 0:02:46]} 10. O-O {[%clk 0:02:17]}  Bb7 {[%clk 0:02:46]} 11. f3 {[%clk 0:02:16]}  Rc8 {[%clk 0:02:44]} 12. Rc1 {[%clk 0:02:13]}  Nh5 {[%clk 0:02:43]} 13. Qe1 {[%clk 0:02:07]}  Nc5 {[%clk 0:02:26]} 14. b4 {[%clk 0:01:56]}  Ne6 {[%clk 0:02:22]} 15. Nxe6 {[%clk 0:01:54]}  fxe6 {[%clk 0:02:23]} 16. f4 {[%clk 0:01:38]}  Nf6 {[%clk 0:02:22]} 17. Bd3 {[%clk 0:01:35]}  Bh6 {[%clk 0:02:07]} 18. f5 {[%clk 0:01:20]}  Bxe3+ {[%clk 0:01:43]} 19. Qxe3 {[%clk 0:01:20]}  gxf5 {[%clk 0:01:30]} 20. exf5 {[%clk 0:01:15]}  e5 {[%clk 0:01:31]} 21. Ne4 {[%clk 0:01:03]}  Bxe4 {[%clk 0:01:21]} 22. Bxe4 {[%clk 0:01:03]}  Qe8 {[%clk 0:01:16]} 23. g4 {[%clk 0:00:59]}  Kh8 {[%clk 0:01:13]} 24. Bg2 {[%clk 0:00:51]}  Qf7 {[%clk 0:01:04]} 25. c5 {[%clk 0:00:31]}  bxc5 {[%clk 0:00:58]} 26. bxc5 {[%clk 0:00:32]}  Nd5 {[%clk 0:00:57]} 27. Qb3 {[%clk 0:00:24]}  Nf4 {[%clk 0:00:48]} 28. Qxf7 {[%clk 0:00:23]}  Rxf7 {[%clk 0:00:48]} 29. Rc2 {[%clk 0:00:14]}  Rff8 {[%clk 0:00:44]} 30. c6 {[%clk 0:00:11]}  Rc7 {[%clk 0:00:44]} 31. Bf3 {[%clk 0:00:05]}  Rfc8 {[%clk 0:00:42]} 32. Re1 {[%clk 0:00:05]}  Kg7 {[%clk 0:00:41]} 33. Kh2 {[%clk 0:00:04]}  Kf6 {[%clk 0:00:40]} 34. h4 {[%clk 0:00:03]}  h6 {[%clk 0:00:41]} 35. Rb1 {[%clk 0:00:02]}  d5 {[%clk 0:00:40]} 36. Rb5 {[%clk 0:00:01]}  e4 {[%clk 0:00:40]} 37. Kg3 {[%clk 0:00:01]}  Nd3 {[%clk 0:00:26]} 38. Bg2 {[%clk 0:00:01]}  Rxc6 {[%clk 0:00:24]} 39. Rxc6+ {[%clk 0:00:02]}  Rxc6 {[%clk 0:00:25]} 40. Rxd5 {[%clk 0:00:03]}  Rc3 {[%clk 0:00:23]} 41. Kh2 {[%clk 0:00:02]}  e3 {[%clk 0:00:22]} 42. Ra5 {[%clk 0:00:01]}  e2 {[%clk 0:00:21]} 43. Ra6+ {[%clk 0:00:02]}  Kg7 {[%clk 0:00:21]} 44. Rg6+ {[%clk 0:00:01]}  Kf8 {[%clk 0:00:20]} 45. Bd5 {[%clk 0:00:01]}  e6 {[%clk 0:00:19]} 46. Bxe6 {[%clk 0:00:00]}  e1=Q {[%clk 0:00:17]} 0-1

[Event "December 5 Early 2023"]
[Site "https://www.chess.com"]
[Date "2023.12.05"]
[Round "7"]
[White "Hjartarson, Johann"]
[Black "Atakhan, Abtin"]
[Result "0-1"]
[Board "53"]
[TimeControl "180+1"]
[WhiteFideId "2300044"]
[BlackFideId "22502203"]
[WhiteElo "2600"]
[BlackElo "2734"]
[WhiteTeam "ISL"]
[BlackTeam "IRI"]
[WhiteClock "0:01:04"]
[BlackClock "0:00:54"]

1. c4 {[%clk 0:03:00]}  Nf6 {[%clk 0:02:59]} 2. g3 {[%clk 0:03:00]}  e5 {[%clk 0:02:54]} 3. Bg2 {[%clk 0:03:00]}  c6 {[%clk 0:02:55]} 4. Nf3 {[%clk 0:02:56]}  e4 {[%clk 0:02:55]} 5. Nd4 {[%clk 0:02:56]}  Qb6 {[%clk 0:02:53]} 6. e3 {[%clk 0:02:55]}  d5 {[%clk 0:02:47]} 7. cxd5 {[%clk 0:02:55]}  cxd5 {[%clk 0:02:48]} 8. d3 {[%clk 0:02:55]}  Nc6 {[%clk 0:02:38]} 9. Nxc6 {[%clk 0:02:46]}  bxc6 {[%clk 0:02:33]} 10. dxe4 {[%clk 0:02:46]}  Nxe4 {[%clk 0:02:15]} 11. O-O {[%clk 0:02:42]}  Ba6 {[%clk 0:02:13]} 12. Re1 {[%clk 0:02:40]}  Bb4 {[%clk 0:02:12]} 13. Nd2 {[%clk 0:02:35]}  O-O {[%clk 0:01:59]} 14. Qc2 {[%clk 0:02:23]}  Nc5 {[%clk 0:01:57]} 15. Bf1 {[%clk 0:02:19]}  Bxf1 {[%clk 0:01:55]} 16. Rxf1 {[%clk 0:02:18]}  Rab8 {[%clk 0:01:49]} 17. Nf3 {[%clk 0:02:15]}  Ne4 {[%clk 0:01:47]} 18. b3 {[%clk 0:02:12]}  Bc3 {[%clk 0:01:43]} 19. Bb2 {[%clk 0:02:06]}  Bxb2 {[%clk 0:01:38]} 20. Qxb2 {[%clk 0:02:06]}  c5 {[%clk 0:01:39]} 21. Qe5 {[%clk 0:02:03]}  Rbd8 {[%clk 0:01:35]} 22. Rac1 {[%clk 0:02:01]}  Rfe8 {[%clk 0:01:33]} 23. Qh5 {[%clk 0:01:53]}  Qf6 {[%clk 0:01:25]} 24. Rfd1 {[%clk 0:01:46]}  Qb2 {[%clk 0:01:20]} 25. Rf1 {[%clk 0:01:31]}  Qxa2 {[%clk 0:01:11]} 26. Ra1 {[%clk 0:01:30]}  Qe2 {[%clk 0:01:03]} 27. Rxa7 {[%clk 0:01:24]}  g6 {[%clk 0:01:01]} 28. Qg4 {[%clk 0:01:17]}  Nd2 {[%clk 0:00:59]} 29. Rfa1 {[%clk 0:01:04]}  Nxf3+ {[%clk 0:00:54]} 0-1